bitfinex-derivatives/quotes_ETHF0:USTF0_20251126
["timestamp","ask_amount","ask_price","bid_price","bid_amount"]
[1764192685684,0.00240273,3033.5,3032.9,2.44869738]
[1764192686596,0.00735249,3033.5,3032.9,2.44869738]
[1764192687091,0.2782,3034.0,3032.9,2.44869738]
[1764192687781,0.2782,3034.0,3032.9,3.32609756]
[1764192688192,0.00494976,3033.8,3032.9,2.44869738]
[1764192689294,0.00494976,3033.8,3033.3,2.44869738]
[1764192691100,0.00494976,3033.8,3032.9,1.04230018]
[1764192691397,0.00494976,3033.8,3033.1,1.429]
[1764192692792,0.00494976,3033.8,3033.2,2.44869738]
[1764192693096,0.00494976,3033.8,3033.2,2.44789738]
[1764192693397,0.00494976,3033.8,3033.2,3.457]
[1764192693590,0.00494976,3033.8,3033.3,3.793]
[1764192695390,0.2827,3033.5,3033.3,3.793]
[1764192696096,0.2827,3033.5,3032.7,0.00494976]
[1764192696498,0.2827,3033.5,3032.9,2.44869738]
[1764192696892,0.00494976,3033.8,3032.9,2.44869738]
[1764192697796,0.00494976,3033.8,3032.8,0.1649]
[1764192697998,0.00494976,3033.8,3032.7,0.00494976]
[1764192698193,0.16979976,3033.8,3032.7,0.00494976]
[1764192698604,0.2827,3033.0,3032.7,0.00494976]
[1764192704501,0.4687,3032.8,3032.7,0.00494976]
[1764192705801,0.2827,3032.5,3031.6,1.04237018]
[1764192705999,0.2827,3032.5,3031.6,0.16497]
[1764192706201,0.2827,3032.5,3031.6,1.04237018]
[1764192706504,0.2827,3032.5,3031.6,2.76107794]
[1764192706706,0.2827,3032.5,3031.6,1.88367776]
[1764192706907,0.2827,3032.5,3031.7,0.00494976]
[1764192707199,0.2827,3032.5,3031.8,0.87740018]
[1764192707598,0.2827,3032.0,3031.7,0.88234994]
[1764192707797,0.4687,3031.8,3031.7,1.74896338]
[1764192707994,0.00274453,3031.8,3031.7,4.19766076]
[1764192708195,0.00274453,3031.8,3031.7,5.06104667]
[1764192708396,0.2827,3032.5,3031.7,5.06141635]
[1764192708705,0.00494976,3032.4,3031.7,5.06141635]
[1764192709202,0.00494976,3032.4,3031.8,0.87558598]
[1764192709405,0.00864974,3032.4,3031.8,0.87558598]
[1764192709706,0.00864974,3032.4,3031.9,0.87558598]
[1764192710200,0.00864974,3032.4,3031.8,0.87558598]
[1764192710707,0.00864974,3032.4,3031.8,2.64696669]
[1764192711396,0.00864974,3032.4,3031.8,2.81192669]
[1764192711601,0.00864974,3032.4,3032.1,0.87558598]
[1764192712007,0.00864974,3032.4,3032.3,1.04051598]
[1764192712206,0.2827,3033.0,3032.3,2.79993]
[1764192712508,0.2827,3033.0,3032.6,0.87481936]
[1764192713197,0.28689191,3033.0,3032.6,0.87481936]
[1764192713602,0.28689191,3033.0,3032.6,2.62310749]
[1764192714406,0.00419191,3033.0,3032.6,2.62310749]
[1764192714601,0.2827,3033.5,3032.9,2.93878963]
[1764192714798,0.2827,3033.5,3033.0,0.87419152]
[1764192715400,0.2827,3034.0,3033.0,0.87419152]
[1764192715600,0.2827,3034.0,3033.2,0.87419152]
[1764192715805,0.28689072,3034.0,3033.3,0.00494976]
[1764192716906,0.28689072,3034.0,3033.3,0.87885973]
[1764192717105,0.28689072,3034.0,3033.3,2.59706738]
[1764192718308,0.28689072,3034.0,3033.3,2.6319239]
[1764192719207,0.28689072,3034.0,3033.3,0.87885973]
[1764192719410,0.28689072,3034.0,3033.3,2.6319239]
[1764192719610,0.28689072,3034.0,3033.3,2.65170344]
[1764192720603,0.28689072,3034.0,3033.3,0.87885973]
[1764192721122,0.00419072,3034.0,3033.5,2.77388963]
[1764192721298,0.2827,3034.5,3033.7,2.93880842]
[1764192721503,0.2827,3035.0,3034.2,0.87243653]
[1764192721702,0.2827,3035.0,3034.2,2.64435344]
[1764192721911,0.2827,3035.0,3034.4,0.87243653]
[1764192722215,0.2827,3035.0,3034.4,0.00378605]
[1764192722216,0.28555339,3035.0,3034.4,0.00378605]
[1764192722399,0.28555339,3035.0,3034.4,1.77570296]
[1764192722800,0.28555339,3035.0,3034.4,0.00378605]
[1764192723211,0.28555339,3035.0,3034.4,1.74896865]
[1764192723407,0.28555339,3035.0,3034.4,0.00378605]
[1764192724003,0.2827,3034.5,3034.4,0.00378605]
[1764192724312,0.7514,3034.5,3034.4,1.74843425]
[1764192724615,0.7514,3034.5,3034.4,1.77694444]
[1764192725216,0.7514,3034.5,3034.4,0.00378605]
[1764192725514,0.7514,3034.5,3034.4,1.75420776]
[1764192726103,0.7302,3034.5,3034.4,1.75420776]
[1764192726301,0.7302,3034.5,3034.4,1.77042301]
[1764192727016,0.7302,3034.5,3034.4,0.00378605]
[1764192727514,0.7302,3034.5,3034.4,1.77042301]
[1764192728716,0.7302,3034.5,3034.4,1.7430511]
[1764192729708,0.7302,3034.5,3034.4,0.00378605]
[1764192729915,0.7302,3034.5,3034.4,1.7430511]
[1764192730108,0.7302,3034.5,3034.4,1.76156848]
[1764192730520,0.1869,3033.8,3033.7,4.2512]
[1764192730709,0.1869,3033.8,3033.7,0.4582]
[1764192731009,0.1869,3033.8,3033.5,0.171]
[1764192731210,0.1869,3033.8,3033.7,0.46174824]
[1764192731514,0.1869,3033.8,3033.7,2.19455211]
[1764192731915,0.2827,3034.5,3033.7,2.19455211]
[1764192733317,0.2827,3034.5,3033.7,2.23902332]
[1764192734018,0.1869,3033.8,3033.7,1.78082332]
[1764192734217,0.1869,3033.8,3033.7,0.00354824]
[1764192734405,0.1869,3033.8,3033.7,0.46174824]
[1764192735014,0.1869,3033.8,3033.7,0.00354824]
[1764192735412,0.1869,3033.8,3033.7,1.78082332]
[1764192736621,0.1869,3033.8,3033.7,1.73336732]
[1764192737513,0.1869,3033.8,3033.7,1.77566444]
[1764192738115,0.1869,3033.8,3033.7,0.00354824]
[1764192738314,0.1648,3034.7,3034.0,0.7412]
[1764192738514,0.1648,3034.7,3034.5,2.00867215]
[1764192738515,0.1869,3034.6,3034.5,2.00867215]
[1764192739523,0.1648,3034.7,3034.6,0.4582]
[1764192739817,0.00285339,3035.0,3034.6,0.4582]
[1764192740025,0.00285339,3035.0,3034.6,2.22095521]
[1764192740722,0.00285339,3035.0,3034.6,0.4582]
[1764192741222,0.00285339,3035.0,3034.6,2.21110994]
[1764192741618,0.3517,3034.7,3034.6,1.75290994]
[1764192741921,0.18975339,3035.0,3034.9,0.4582]
[1764192742122,0.18975339,3035.0,3034.9,2.1957493]
[1764192743014,0.18975339,3035.0,3034.9,2.22017298]
[1764192743621,0.18975339,3035.0,3034.9,1.76197298]
[1764192744218,0.18975339,3035.0,3034.9,2.22017298]
[1764192744418,0.00285339,3035.0,3034.9,2.22017298]
[1764192744926,0.00285339,3035.0,3034.9,2.22569263]
[1764192745425,0.00285339,3035.0,3034.9,0.4582]
[1764192745626,0.00285339,3035.0,3034.9,2.22513553]
[1764192746325,0.18975339,3035.0,3034.9,2.21309789]
[1764192746622,0.18975339,3035.0,3034.9,1.75489789]
[1764192747219,0.18975339,3035.0,3034.9,1.72766681]
[1764192748322,0.1869,3034.6,3034.5,0.283]
[1764192748521,0.1869,3034.6,3034.5,2.00941336]
[1764192748730,0.1869,3034.6,3034.5,2.46761336]
[1764192749022,0.00285339,3035.0,3034.5,2.46761336]
[1764192749529,0.00285339,3035.0,3034.5,0.7412]
[1764192749724,0.00285339,3035.0,3034.5,2.48678292]
[1764192751534,0.00285339,3035.0,3034.5,2.49995298]
[1764192752641,0.00285339,3035.0,3034.5,0.7412]
[1764192753541,0.16763339,3035.0,3034.5,0.7412]
[1764192753742,0.16763339,3035.0,3034.5,2.45117734]
[1764192754443,0.16763339,3035.0,3034.5,0.7412]
[1764192754741,0.16763339,3035.0,3034.5,2.48506002]
[1764192754942,0.16763339,3035.0,3034.5,0.7412]
[1764192755645,0.16763339,3035.0,3034.5,2.50688964]
[1764192755837,0.1648,3034.8,3034.5,2.50688964]
[1764192756042,0.1869,3034.6,3034.5,2.49049221]
[1764192757043,0.1648,3034.8,3034.5,2.46779849]
[1764192757442,0.3516,3034.8,3034.7,0.4654]
[1764192758345,0.1868,3034.6,3034.5,0.7484]
[1764192758542,0.1648,3034.8,3034.5,0.7484]
[1764192758543,0.3516,3034.8,3034.7,0.4654]
[1764192759643,0.3516,3034.8,3034.7,2.2036595]
[1764192760339,0.3516,3034.8,3034.7,2.23676539]
[1764192761748,0.3516,3034.8,3034.7,2.18224947]
[1764192763349,0.1648,3034.8,3034.7,0.4654]
[1764192763553,0.1648,3034.8,3034.7,2.24089903]
[1764192764245,0.1648,3034.8,3034.7,0.4654]
[1764192764442,0.1648,3034.8,3034.7,2.24089903]
[1764192765446,0.1648,3034.8,3034.7,0.4654]
[1764192766148,0.3516,3034.8,3034.7,0.4654]
[1764192766349,0.1868,3034.6,3034.5,0.7484]
[1764192766550,0.1868,3034.6,3034.5,2.50467448]
[1764192767145,0.00285339,3035.0,3034.9,0.4654]
[1764192767341,1.18091645,3035.3,3035.2,0.4654]
[1764192767641,1.18416344,3036.2,3036.1,0.4654]
[1764192767845,0.4705,3036.7,3036.6,0.4654]
[1764192768249,3.41450229,3036.7,3036.6,2.20680378]
[1764192768449,2.94707382,3036.7,3036.6,2.21076819]
[1764192768751,0.1896,3038.0,3037.6,0.4654]
[1764192768951,0.4705,3037.7,3037.0,0.2734]
[1764192769258,0.4705,3037.5,3037.4,0.4654]
[1764192769546,3.70660229,3037.5,3037.0,0.2734]
[1764192769751,0.47304629,3037.5,3037.4,2.20218092]
[1764192769945,0.92979629,3037.5,3037.4,1.73678092]
[1764192770145,3.87379858,3037.5,3037.4,1.73678092]
[1764192770645,3.87379858,3037.5,3036.6,0.00396441]
[1764192770953,2.94400229,3037.4,3036.6,0.00396441]
[1764192771252,2.94400229,3037.3,3036.6,0.00396441]
[1764192771646,2.94400229,3037.1,3036.6,0.00396441]
[1764192771850,2.94400229,3037.2,3036.6,0.00396441]
[1764192772152,2.94400229,3037.1,3036.6,0.00396441]
[1764192772349,2.94400229,3037.2,3036.6,0.00396441]
[1764192772747,2.94400229,3037.1,3036.6,0.00396441]
[1764192772942,0.4705,3036.7,3036.6,0.00396441]
[1764192773341,3.41450229,3036.7,3036.6,0.00396441]
[1764192773742,3.57919229,3036.7,3036.6,0.00396441]
[1764192774149,3.57921229,3036.4,3035.5,0.2734]
[1764192774344,5.38498642,3036.4,3035.5,0.2734]
[1764192774543,0.2921,3036.0,3035.5,0.2734]
[1764192774746,0.4705,3035.6,3035.5,0.4654]
[1764192774950,0.4705,3035.6,3035.5,1.71443999]
[1764192775143,3.41450229,3035.6,3035.5,1.71774016]
[1764192775347,3.41450229,3035.6,3035.5,1.75634665]
[1764192775546,3.41450229,3035.6,3035.5,1.75686335]
[1764192776654,6.02023642,3035.6,3035.5,1.75686335]
[1764192776854,6.02023642,3035.6,3035.5,1.7547534]
[1764192777945,3.57925229,3035.6,3035.5,1.7547534]
[1764192778151,3.57925229,3035.6,3035.5,2.2201534]
[1764192778342,3.57925229,3035.6,3035.5,0.46870017]
[1764192778548,2.94400229,3035.6,3035.5,2.48602536]
[1764192779053,3.41450229,3035.6,3035.5,1.74722536]
[1764192779850,3.41450229,3035.6,3035.5,1.77319469]
[1764192781153,3.41450229,3035.6,3035.5,1.7162861]
[1764192781354,3.57925229,3035.6,3035.5,1.7162861]
[1764192781554,0.4705,3035.3,3034.1,0.87362729]
[1764192781859,0.4705,3034.2,3034.1,1.71381274]
[1764192782260,3.41450229,3034.2,3034.1,1.71381274]
[1764192782468,0.4705,3033.6,3033.0,0.2734]
[1764192782652,0.47780836,3033.6,3033.0,0.2819983]
[1764192782951,0.16487,3033.5,3033.0,0.2819983]
[1764192784156,0.00730836,3033.6,3033.5,0.4654]
[1764192784361,0.00730836,3033.6,3033.5,2.18778046]
[1764192784560,2.95131065,3033.6,3033.5,2.18778046]
[1764192785651,2.95131065,3033.6,3033.5,0.4654]
[1764192785862,2.95131065,3033.6,3033.5,2.17527906]
[1764192786255,3.42181065,3033.6,3033.5,1.70987906]
[1764192786960,3.42181065,3033.6,3033.0,0.2819983]
[1764192787148,3.42181065,3033.6,3033.4,2.19751516]
[1764192787149,2.94400229,3033.5,3033.4,2.19751516]
[1764192788352,2.94400229,3033.5,3033.4,2.21560714]
[1764192789257,0.00730836,3033.6,3033.5,0.7272]
[1764192789462,3.43260229,3033.5,3033.4,1.7206687]
[1764192789657,3.43260229,3033.5,3033.4,2.1692687]
[1764192790057,2.94400229,3033.5,3033.4,2.1692687]
[1764192790259,0.00730836,3033.6,3033.5,0.7272]
[1764192790459,0.49590836,3033.6,3033.5,2.2252111]
[1764192790760,0.00730836,3033.6,3033.5,0.7272]
[1764192790957,0.00730836,3033.6,3033.5,2.5038111]
[1764192791763,3.60477065,3033.6,3033.5,1.7766111]
[1764192791963,0.2805,3033.5,3033.0,0.2819983]
[1764192792160,2.94400229,3033.4,3033.3,0.4486]
[1764192792354,3.11617065,3033.6,3033.5,0.7272]
[1764192792553,0.17216836,3033.6,3033.5,0.7272]
[1764192792759,3.11617065,3033.6,3033.5,0.7272]
[1764192793361,3.11617065,3033.6,3033.5,2.46089296]
[1764192794262,0.00730836,3033.6,3033.5,2.46089296]
[1764192795360,0.00730836,3033.6,3033.5,2.48157142]
[1764192796458,0.00730836,3033.6,3033.5,2.4383507]
[1764192796962,2.95131065,3033.6,3033.5,2.4383507]
[1764192797364,3.43991065,3033.6,3033.5,2.4383507]
[1764192797752,2.95131065,3033.6,3033.5,2.4383507]
[1764192798052,2.95131065,3033.6,3033.5,0.7272]
[1764192798255,2.95131065,3033.6,3033.5,2.43936119]
[1764192799457,2.95131065,3033.6,3033.5,2.48136886]
[1764192799662,3.43991065,3033.6,3033.5,2.20276886]
[1764192800069,3.60477065,3033.6,3033.5,1.75416886]
[1764192800557,3.60477065,3033.6,3033.0,0.2819983]
[1764192800558,0.65349,3033.1,3033.0,0.0085983]
[1764192800757,3.59749229,3033.1,3033.0,0.0085983]
[1764192804064,0.44539,3033.0,3032.5,0.2734]
[1764192804259,0.44539,3033.0,3032.5,0.4486]
[1764192804260,0.4886,3032.6,3032.5,0.4486]
[1764192804466,3.59751229,3032.6,3032.5,1.74578658]
[1764192804966,0.4886,3032.3,3032.2,0.00494153]
[1764192805160,6.03851642,3032.3,3031.2,0.87362729]
[1764192805355,3.10896229,3031.8,3031.3,2.18111953]
[1764192805563,0.2805,3032.5,3031.7,0.4486]
[1764192805764,0.2805,3032.5,3032.2,2.18111953]
[1764192805962,0.4886,3032.3,3032.0,0.2786]
[1764192806162,0.16492,3032.6,3032.2,0.4486]
[1764192806365,0.00494153,3032.5,3032.0,0.72967292]
[1764192806569,0.4886,3032.3,3032.2,2.22190776]
[1764192806763,3.43260229,3032.3,3032.2,1.77330776]
[1764192806959,3.59753229,3032.3,3032.2,1.77330776]
[1764192807264,0.4886,3032.1,3032.0,0.00247292]
[1764192807462,3.43260229,3032.1,3032.0,0.00247292]
[1764192807660,2.94400229,3032.1,3032.0,2.48172722]
[1764192808363,6.03852642,3032.1,3032.0,1.7616664]
[1764192808569,2.94400229,3032.1,3032.0,2.4888664]
[1764192808771,3.43260229,3032.1,3032.0,1.7616664]
[1764192809162,3.59754229,3032.1,3032.0,1.76107617]
[1764192809358,3.59754229,3032.1,3032.0,0.00247292]
[1764192809571,3.59754229,3032.1,3032.0,1.7289472]
[1764192809962,3.59754229,3032.1,3032.0,0.00247292]
[1764192810573,3.59754229,3032.1,3031.0,0.2786]
[1764192810574,0.16497,3031.5,3031.0,0.2786]
[1764192810874,0.2805,3031.0,3030.5,0.2786]
[1764192811068,3.22450229,3031.0,3030.5,0.2786]
[1764192811275,2.94400229,3030.7,3030.5,0.2786]
[1764192811469,2.94644726,3030.7,3030.6,0.4486]
[1764192811676,0.00244497,3030.7,3030.6,2.19762243]
[1764192811975,2.94644726,3030.7,3030.6,2.17621444]
[1764192812960,2.94644726,3030.7,3030.6,2.16358312]
[1764192813965,2.94644726,3030.7,3030.6,2.20158942]
[1764192814575,2.94644726,3030.7,3030.6,0.4486]
[1764192815071,2.94644726,3030.7,3030.6,2.20158942]
[1764192815970,0.2805,3031.5,3030.8,0.1169]
[1764192815971,0.45958,3031.5,3030.8,0.1169]
[1764192816175,0.45958,3031.5,3031.4,0.1169]
[1764192816374,0.95438,3031.5,3031.4,1.85790532]
[1764192816576,2.68968413,3032.5,3031.4,1.85790532]
[1764192816770,0.44545,3032.0,3031.4,1.85790532]
[1764192816971,0.45284292,3032.0,3031.4,1.85790532]
[1764192817566,0.2946,3031.5,3031.4,0.1169]
[1764192817772,0.2946,3031.5,3031.4,1.89038965]
[1764192819367,0.2946,3031.5,3031.4,1.87676079]
[1764192820068,0.7894,3031.5,3031.4,1.87676079]
[1764192820376,0.7894,3031.5,3031.4,1.77539166]
[1764192820670,0.45284292,3032.0,3031.4,1.89229166]
[1764192821476,0.7894,3032.0,3031.4,1.77539166]
[1764192821676,0.7894,3032.0,3031.4,1.72756105]
[1764192822073,0.7894,3032.0,3031.2,1.456]
[1764192822386,0.00494153,3031.9,3031.8,0.1169]
[1764192822576,0.00494153,3031.9,3031.8,1.86594787]
[1764192823680,0.00494153,3031.9,3031.8,1.8794641]
[1764192824678,0.00494153,3031.9,3031.8,1.84100489]
[1764192825773,0.00494153,3031.9,3031.8,0.1169]
[1764192825975,0.00494153,3031.9,3031.8,1.83814397]
[1764192826576,0.00494153,3031.9,3031.8,0.1169]
[1764192826776,0.00494153,3031.9,3031.8,1.83814397]
[1764192827981,0.00494153,3031.9,3031.8,1.84772741]
[1764192829278,0.49974153,3031.9,3031.8,1.70991965]
[1764192829475,0.66469153,3031.9,3031.8,1.70991965]
[1764192829780,0.66469153,3031.9,3031.0,0.8718878]
[1764192830278,0.2946,3031.5,3031.0,0.8718878]
[1764192830473,0.2946,3031.5,3031.0,2.58200426]
[1764192830884,0.2946,3031.5,3031.0,0.8718878]
[1764192831085,0.2946,3031.5,3031.0,1.71756615]
[1764192831287,0.7894,3031.0,3030.7,0.8718878]
[1764192831476,0.7894,3031.0,3030.7,1.71756615]
[1764192831785,0.4948,3030.8,3030.7,1.71756615]
[1764192831984,0.4948,3030.8,3030.5,0.00370584]
[1764192832875,0.4948,3030.6,3030.5,0.12060584]
[1764192833185,0.2946,3031.0,3030.5,0.12060584]
[1764192833382,0.2946,3031.0,3030.5,1.89538319]
[1764192834181,0.2946,3031.0,3030.5,1.86453907]
[1764192834684,0.2946,3031.0,3030.9,0.4649]
[1764192834884,0.2946,3031.0,3030.9,2.20883323]
[1764192835085,0.7894,3031.0,3030.9,2.20883323]
[1764192835470,0.7894,3031.0,3030.9,0.4649]
[1764192835673,0.7894,3031.0,3030.9,2.17575506]
[1764192836380,0.2946,3031.5,3030.9,2.17575506]
[1764192836574,0.7894,3031.5,3030.9,1.74878279]
[1764192836974,0.2946,3031.0,3030.9,2.21368279]
[1764192838282,0.2946,3031.0,3030.9,2.23832366]
[1764192838594,0.7894,3031.0,3030.5,0.00370584]
[1764192839290,0.2946,3031.0,3030.9,0.4649]
[1764192839492,0.2946,3031.5,3030.9,2.21756221]
[1764192840283,0.01096143,3031.2,3031.1,0.4649]
[1764192840893,0.00494153,3031.9,3031.1,3.10530938]
[1764192841088,0.00494153,3031.9,3031.1,2.23342158]
[1764192841281,0.00494153,3031.9,3031.8,0.4649]
[1764192841483,0.00494153,3031.9,3031.8,2.23342158]
[1764192841891,0.49974153,3031.9,3031.8,1.76852158]
[1764192842692,0.49974153,3031.9,3031.8,1.71012365]
[1764192843093,0.2946,3031.5,3031.2,0.8718878]
[1764192843285,0.2946,3031.5,3030.9,3.793]
[1764192843485,0.2946,3031.5,3030.8,0.8718878]
[1764192843786,0.16499,3031.2,3030.6,0.8718878]
[1764192843984,0.16499,3031.2,3030.6,1.71012365]
[1764192844789,0.16499,3031.2,3030.5,0.87559364]
[1764192845295,0.16499,3031.2,3030.5,2.60211584]
[1764192846189,0.16499,3031.2,3030.5,0.87559364]
[1764192846391,0.16499,3031.2,3030.5,2.59453858]
[1764192846894,0.16499,3031.2,3030.5,0.87559364]
[1764192847091,0.16499,3031.2,3030.5,0.00370584]
[1764192847593,0.2946,3031.5,3030.5,1.72265078]
[1764192847594,0.2883,3031.0,3030.5,1.72265078]
[1764192847985,0.4804,3030.6,3030.5,1.72265078]
[1764192848190,0.0843046,3030.6,3030.5,0.45940584]
[1764192848590,0.16501,3030.9,3030.5,0.45940584]
[1764192848890,0.4804,3030.6,3030.5,0.45940584]
[1764192849095,0.4804,3030.6,3030.5,2.23377697]
[1764192849292,0.4804,3030.6,3030.5,1.77807697]
[1764192849498,0.4804,3030.6,3030.5,0.00370584]
[1764192849796,0.64542,3030.6,3030.5,0.00370584]
[1764192850390,0.2883,3031.0,3030.1,1.73493976]
[1764192850391,0.4804,3030.2,3030.1,1.73493976]
[1764192850596,0.64545,3030.2,3030.1,0.4557]
[1764192850799,0.64545,3030.2,3030.1,2.19125919]
[1764192851297,0.64545,3030.2,3030.1,2.19407997]
[1764192851493,0.4804,3030.2,3030.1,2.19407997]
[1764192851898,0.45333,3030.5,3030.1,2.20711135]
[1764192852298,0.4804,3030.2,3030.1,0.45852078]
[1764192852498,0.4804,3030.2,3030.1,2.20711135]
[1764192853294,0.4804,3030.2,3030.1,2.21515255]
[1764192854198,0.4804,3030.2,3030.1,0.45852078]
[1764192854798,0.4804,3030.2,3030.1,2.21515255]
[1764192855102,0.4804,3030.2,3030.1,2.22406267]
[1764192855806,0.93373,3030.5,3030.4,0.4557]
[1764192856099,0.16501,3030.9,3030.4,0.4557]
[1764192856308,0.16501,3030.9,3030.4,2.1666395]
[1764192856604,0.64541,3030.9,3030.8,0.4557]
[1764192856799,0.2883,3031.0,3030.9,0.4557]
[1764192857004,0.7687,3031.0,3030.9,2.1666395]
[1764192858100,0.7687,3031.0,3030.9,0.4557]
[1764192858297,0.9337,3031.0,3030.9,1.77884197]
[1764192859101,3.71121132,3031.0,3030.9,1.77884197]
[1764192859498,0.16502,3030.6,3030.1,0.00282078]
[1764192859707,0.2883,3030.5,3030.1,0.00282078]
[1764192861924,0.16502,3030.6,3030.5,0.4557]
[1764192862116,0.64542,3030.6,3030.5,2.20955159]
[1764192862523,0.2883,3031.0,3030.5,2.20955159]
[1764192862716,0.9337,3031.0,3030.9,0.4557]
[1764192862918,0.9337,3031.0,3030.9,1.7256179]
[1764192863710,1.76098414,3031.4,3031.1,0.4557]
[1764192863711,1.17110737,3031.4,3031.1,0.4557]
[1764192864016,0.4804,3031.2,3031.1,1.72504337]
[1764192864412,0.4804,3031.2,3031.1,1.75785108]
[1764192865717,0.4804,3031.2,3031.1,2.16743639]
[1764192865916,0.64539,3031.2,3031.1,1.71173639]
[1764192866821,0.64539,3031.2,3031.1,1.77009698]
[1764192867021,0.16499,3031.2,3031.1,2.22579698]
[1764192867220,0.2946,3031.5,3031.4,0.4557]
[1764192867409,0.2946,3031.5,3031.4,2.22579698]
[1764192867718,0.16497,3031.7,3031.4,2.22579698]
[1764192867913,0.16497,3031.6,3031.4,1.77009698]
[1764192868108,0.16497,3031.6,3031.0,0.2344]
[1764192868109,0.16497,3031.6,3031.5,2.22702247]
[1764192868515,0.16497,3031.6,3031.5,2.22674153]
[1764192868716,0.00494153,3031.9,3031.8,0.4557]
[1764192868915,0.00494153,3031.9,3031.8,2.22674153]
[1764192869110,0.00494153,3031.9,3031.8,0.4557]
[1764192869916,0.00494153,3031.9,3031.8,2.229952]
[1764192870117,0.48534153,3031.9,3031.8,2.229952]
[1764192870313,0.65029153,3031.9,3031.8,1.77071478]
[1764192871628,0.65029153,3031.9,3031.8,1.71278722]
[1764192872718,0.64539,3031.3,3031.2,0.00494976]
[1764192873327,0.64539,3031.3,3031.2,0.46064976]
[1764192873529,0.16499,3031.3,3031.2,2.23890468]
[1764192873715,0.64539,3031.3,3031.2,1.78320468]
[1764192874228,0.16501,3030.8,3030.5,0.2035]
[1764192874426,0.16502,3030.7,3030.5,0.2035]
[1764192874627,0.16502,3030.7,3030.5,1.94779581]
[1764192875227,0.64542,3030.6,3030.5,1.94779581]
[1764192875530,0.64542,3030.6,3030.5,2.3946898]
[1764192875731,0.16502,3030.6,3030.5,2.3946898]
[1764192875932,0.64332,3030.6,3030.5,2.3946898]
[1764192876327,0.64332,3030.6,3030.5,1.7253898]
[1764192876532,0.64332,3030.6,3030.5,1.72731618]
[1764192877826,0.16503,3030.5,3030.4,0.4658]
[1764192878025,0.16503,3030.5,3030.4,2.21474653]
[1764192879227,0.64333,3030.5,3030.4,1.74894653]
[1764192879427,0.64333,3030.4,3030.3,0.00494976]
[1764192880028,0.16503,3030.4,3030.3,2.18941549]
[1764192880722,0.16503,3030.4,3030.3,2.21556126]
[1764192882228,0.16503,3030.4,3030.3,2.21442242]
[1764192883234,0.16503,3030.4,3030.3,0.47074976]
[1764192883529,0.16503,3030.4,3030.3,2.18271491]
[1764192883733,0.16503,3030.4,3030.3,0.47074976]
[1764192884132,0.16503,3030.4,3030.3,2.18271491]
[1764192885035,0.16503,3030.4,3030.3,2.18274892]
[1764192886030,0.64333,3030.4,3030.3,1.71694892]
[1764192886335,0.64334,3030.2,3030.1,0.00282078]
[1764192886932,0.64334,3030.2,3030.1,0.46862078]
[1764192887534,0.64334,3030.2,3030.1,2.24091926]
[1764192888529,0.64334,3030.2,3030.1,1.74538014]
[1764192889136,0.16506,3029.9,3029.8,0.00333276]
[1764192889331,2.94257132,3029.9,3029.8,0.00333276]
[1764192889839,0.16508,3029.6,3029.5,0.1977]
[1764192890231,0.16781578,3029.6,3029.5,0.20159462]
[1764192893437,0.1651,3029.1,3028.5,0.2701]
[1764192893740,2.94261132,3029.1,3028.5,0.2701]
[1764192894435,2.77751132,3029.1,3028.5,0.2701]
[1764192894642,2.62087781,3028.6,3028.5,0.7359]
[1764192895537,2.62087781,3028.6,3028.5,0.74005923]
[1764192897443,2.62087781,3028.6,3028.5,0.27425923]
[1764192900448,6.99913559,3028.6,3028.5,0.27425923]
[1764192901037,1.17110737,3029.5,3029.2,0.4658]
[1764192901240,0.00273578,3029.6,3029.5,0.7359]
[1764192901442,0.00273578,3029.6,3029.5,2.46629329]
[1764192901649,0.00494976,3030.2,3030.1,0.4658]
[1764192902035,0.00494976,3030.2,3030.1,2.20393851]
[1764192902740,0.00855781,3030.2,3030.1,2.20393851]
[1764192903235,0.00855781,3030.2,3030.1,2.22520314]
[1764192904447,0.00855781,3030.2,3030.1,2.19908014]
[1764192905637,0.00855781,3030.2,3030.1,2.21815637]
[1764192906736,0.00855781,3030.2,3030.1,2.23192598]
[1764192907648,0.00855781,3030.2,3030.1,0.4658]
[1764192907943,0.00855781,3030.2,3030.1,2.2448599]
[1764192909248,0.00855781,3030.2,3030.1,2.22410614]
[1764192909749,4.265,3030.9,3030.7,0.4941]
[1764192909936,4.265,3030.9,3030.8,0.4941]
[1764192910240,0.165,3031.0,3030.8,0.4941]
[1764192910442,0.165,3031.0,3030.9,0.4941]
[1764192910831,0.16857638,3031.0,3030.9,0.49770982]
[1764192911337,0.16857638,3031.0,3030.9,2.24470721]
[1764192912342,1.17110737,3031.7,3031.5,0.2816]
[1764192912547,0.4682,3031.7,3031.6,0.4941]
[1764192912840,0.4682,3031.7,3031.6,2.22539224]
[1764192913243,0.4682,3031.7,3031.6,0.4941]
[1764192913438,0.63709498,3031.7,3031.6,2.22330651]
[1764192914849,0.16498,3031.4,3031.0,0.2816]
[1764192915055,2.45574781,3031.3,3031.2,0.4941]
[1764192915547,0.16498,3031.4,3031.2,0.4941]
[1764192915849,0.00392498,3031.7,3031.6,0.4941]
[1764192917148,0.00392498,3031.7,3031.6,2.25995652]
[1764192917746,2.92787279,3031.7,3031.6,1.76585652]
[1764192917944,0.63317,3031.6,3031.5,0.7757]
[1764192918150,0.63317,3031.6,3031.5,0.2816]
[1764192918447,3.09283279,3031.7,3031.6,1.73412539]
[1764192918648,0.16498,3031.4,3031.0,0.2816]
[1764192919242,0.16499,3031.3,3031.0,0.2816]
[1764192919439,0.16499,3031.3,3031.2,2.22822539]
[1764192919642,0.16499,3031.3,3031.2,0.4941]
[1764192919853,0.16499,3031.3,3031.2,2.25855321]
[1764192920854,0.00392498,3031.7,3031.6,0.4941]
[1764192921061,0.00392498,3031.7,3031.6,2.262946]
[1764192921945,0.00392498,3031.7,3031.6,0.4941]
[1764192922140,0.00392498,3031.7,3031.6,2.25208697]
[1764192922546,2.498e-05,3031.7,3031.6,2.25208697]
[1764192922750,2.498e-05,3031.7,3031.6,0.4941]
[1764192923148,2.498e-05,3031.7,3031.6,2.25208697]
[1764192923850,2.498e-05,3031.7,3031.6,2.20457587]
[1764192924649,2.498e-05,3031.7,3031.6,0.4941]
[1764192924854,2.498e-05,3031.7,3031.6,2.20551005]
[1764192925758,2.498e-05,3031.7,3031.6,0.4941]
[1764192925959,2.498e-05,3031.7,3031.6,2.24140717]
[1764192927356,2.498e-05,3031.7,3031.6,2.2690018]
[1764192928260,2.498e-05,3031.7,3031.6,2.21474704]
[1764192928865,2.45574781,3032.9,3032.2,0.4941]